bitfinex-derivatives/quotes_SOLF0:USTF0_20250127
["timestamp","ask_amount","ask_price","bid_price","bid_amount"]
[1737974052942,4.4719,223.72,223.7,0.02913138]
[1737974053139,0.02900847,223.79,223.59,23.45822121]
[1737974053340,23.45822121,223.76,223.58,3.06]
[1737974053639,4.4721,223.71,223.6,4.4741]
[1737974053840,1.4701,223.7,223.58,3.06]
[1737974054440,0.03316245,223.66,223.58,3.06]
[1737974054739,0.03316245,223.66,223.51,23.45822121]
[1737974055136,4.4732,223.66,223.59,4.4744]
[1737974055337,0.02857739,223.61,223.51,23.45822121]
[1737974055538,0.02857739,223.61,223.55,23.45822121]
[1737974055733,0.02857739,223.61,223.6,4.4742]
[1737974057235,7.739e-05,223.61,223.6,4.4742]
[1737974057739,4.4742,223.6,223.52,4.4758]
[1737974057944,1.4036,223.59,223.47,10.03194102]
[1737974058139,1.4036,223.59,223.46,246.54244781]
[1737974058339,4.4746,223.58,223.48,4.4764]
[1737974058540,0.03398198,223.55,223.5,0.03093167]
[1737974058843,0.03398198,223.55,223.5,4.50703167]
[1737974059140,0.03398198,223.55,223.5,0.03093167]
[1737974060737,0.03398198,223.55,223.5,4.50713167]
[1737974061844,0.03398198,223.55,223.5,0.03093167]
[1737974062846,4.476,223.52,223.5,0.03093167]
[1737974064646,0.03398198,223.55,223.37,184.90683586]
[1737974064942,23.45822121,223.56,223.37,184.90683586]
[1737974065747,23.45822121,223.56,223.39,4.4784]
[1737974065942,0.03237957,223.49,223.39,4.4784]
[1737974066143,0.03237957,223.49,223.37,184.90683586]
[1737974066846,0.03237957,223.49,223.32,23.45822121]
[1737974067043,23.45822121,223.52,223.32,23.45822121]
[1737974067247,0.03270706,223.43,223.37,4.4788]
[1737974067449,0.03270706,223.43,223.32,23.45822121]
[1737974067745,4.51040706,223.43,223.35,4.479]
[1737974068741,4.4779,223.42,223.31,184.90683586]
[1737974068941,1.441,223.42,223.31,184.90683586]
[1737974069350,4.4783,223.4,223.33,4.4795]
[1737974069541,1.441,223.42,223.31,184.90683586]
[1737974069940,0.03302554,223.39,223.36,4.4789]
[1737974070350,0.03302554,223.39,223.32,23.45822121]
[1737974070650,0.03302554,223.39,223.37,4.4786]
[1737974071041,0.03302554,223.39,223.32,23.45822121]
[1737974071443,0.00654374,223.39,223.32,23.45822121]
[1737974071646,0.00654374,223.39,223.37,4.4788]
[1737974072645,0.00654374,223.39,223.36,0.02766031]
[1737974073350,0.00654374,223.39,223.37,4.4788]
[1737974074052,0.00654374,223.39,223.31,184.90683586]
[1737974075055,0.00654374,223.39,223.34,4.4794]
[1737974075255,0.00654374,223.39,223.28,0.17465]
[1737974075550,0.00654374,223.39,223.34,4.4792]
[1737974075854,0.00654374,223.39,223.28,0.17465]
[1737974076959,4.4795,223.34,223.28,4.65525]
[1737974077155,23.45822121,223.44,223.28,0.17465]
[1737974077355,0.03337235,223.33,223.23,184.90683586]
[1737974077556,4.4814,223.25,223.23,184.90683586]
[1737974077856,0.02956458,223.3,223.2,431.44928367]
[1737974078060,4.4806,223.28,223.2,435.93138367]
[1737974078259,23.45822121,223.35,223.2,431.44928367]
[1737974078453,0.02912814,223.26,223.2,431.44928367]
[1737974080054,0.02912814,223.26,223.19,23.45822121]
[1737974080055,0.02912814,223.26,223.24,4.4813]
[1737974080557,0.02912814,223.26,223.13,184.90683586]
[1737974081056,0.02912814,223.26,223.14,3.0754]
[1737974081559,0.02912814,223.26,223.17,4.4827]
[1737974082154,4.48677147,223.26,223.17,4.4827]
[1737974082951,4.4815,223.24,223.15,4.4831]
[1737974083350,0.00577147,223.26,223.17,0.02335667]
[1737974083551,2.8082,223.32,223.17,0.02335667]
[1737974083758,4.4812,223.26,223.17,4.50615667]
[1737974083954,0.03012349,223.24,223.17,4.4828]
[1737974084156,0.03012349,223.24,223.19,0.02335667]
[1737974085358,0.0059698,223.24,223.19,0.02335667]
[1737974087059,2.8082,223.32,223.19,4.50575667]
[1737974087258,2.8082,223.32,223.19,0.02335667]
[1737974088062,1.3993,223.32,223.19,0.02335667]
[1737974088258,0.02948654,223.28,223.19,0.02335667]
[1737974089061,0.02948654,223.28,223.24,4.4814]
[1737974089357,0.02948654,223.28,223.18,14.70498703]
[1737974089562,0.02948654,223.28,223.24,0.02962425]
[1737974091463,0.00600795,223.28,223.24,0.02962425]
[1737974092464,0.00600795,223.28,223.24,4.51102425]
[1737974094564,0.00600795,223.28,223.25,4.4812]
[1737974094960,0.00600795,223.28,223.24,0.02962425]
[1737974095561,4.481,223.27,223.24,0.02962425]
[1737974095766,0.00600795,223.28,223.24,0.02962425]
[1737974097670,0.00600795,223.28,223.24,4.51102425]
[1737974098573,0.00600795,223.28,223.25,4.4812]
[1737974100265,0.00600795,223.28,223.24,0.02962425]
[1737974100666,14.70498703,223.35,223.24,0.02962425]
[1737974100870,4.4806,223.28,223.24,0.02962425]
[1737974101073,14.70498703,223.32,223.24,0.02962425]
[1737974101570,4.4812,223.25,223.24,0.02962425]
[1737974102372,4.481,223.26,223.24,0.02962425]
[1737974102673,0.02925289,223.3,223.24,0.02962425]
[1737974102875,14.70498703,223.29,223.24,0.02962425]
[1737974103076,4.4812,223.25,223.24,0.02962425]
[1737974103380,14.70498703,223.26,223.15,4.4832]
[1737974103573,4.4829,223.17,223.08,14.70498703]
[1737974103769,14.70498703,223.23,223.08,14.70498703]
[1737974104173,4.4833,223.15,223.06,246.54244781]
[1737974104678,4.4833,223.15,223.12,0.02883093]
[1737974105477,4.4833,223.15,223.14,184.90683586]
[1737974105779,4.4833,223.15,223.14,129.22153586]
[1737974106379,4.4836,223.13,223.12,221.55691665]
[1737974107875,4.51206035,223.15,223.12,221.55691665]
[1737974108375,4.4835,223.14,223.12,221.55691665]
[1737974109086,0.02866035,223.15,223.1,0.02451152]
[1737974109087,4.484,223.11,223.1,0.02451152]
[1737974109581,4.4835,223.14,223.1,0.02451152]
[1737974109782,0.02866035,223.15,223.1,0.02451152]
[1737974110480,14.70498703,223.12,223.1,0.02451152]
[1737974110883,19.18888703,223.12,223.1,0.02451152]
[1737974111484,19.18888703,223.12,223.1,1.152e-05]
[1737974111981,4.484,223.11,223.1,1.152e-05]
[1737974112181,14.70498703,223.12,222.97,1.352]
[1737974112381,14.70498703,223.08,222.97,1.352]
[1737974112982,14.70498703,223.08,222.94,2.7361]
[1737974113179,4.4858,223.03,222.94,2.7361]
[1737974113484,0.03290087,223.03,222.89,14.70498703]
[1737974113686,4.4864,223.0,222.89,14.70498703]
[1737974113880,4.4864,223.0,222.94,4.4874]
[1737974114181,0.03128265,222.97,222.85,14.70498703]
[1737974114379,0.03128265,222.97,222.86,2.711]
[1737974114583,14.70498703,223.0,222.93,4.4876]
[1737974114782,0.03346706,222.94,222.93,4.4876]
[1737974115085,14.70498703,223.0,222.87,1.3609]
[1737974115282,0.03244923,222.96,222.87,1.3609]
[1737974115678,0.03244923,222.96,222.91,4.4879]
[1737974116385,0.03244923,222.96,222.87,1.3609]
[1737974116886,4.51954923,222.96,222.89,4.4884]
[1737974117081,14.73743626,222.96,222.86,2.711]
[1737974117385,14.70498703,222.93,222.78,14.70498703]
[1737974117687,14.70498703,222.93,222.74,14.70498703]
[1737974117876,0.03329097,222.88,222.74,14.70498703]
[1737974118077,14.70498703,222.93,222.78,14.70498703]
[1737974118280,0.03395206,222.83,222.78,14.70498703]
[1737974118486,4.4879,222.92,222.82,4.4898]
[1737974118682,4.4879,222.92,222.74,14.70498703]
[1737974118683,0.02851109,222.83,222.74,14.70498703]
[1737974118988,4.488,222.92,222.79,4.4903]
[1737974119188,0.03116842,222.81,222.74,14.70498703]
[1737974119389,0.0283281,222.85,222.74,14.70498703]
[1737974119584,14.70498703,222.96,222.8,14.70498703]
[1737974119784,14.70498703,222.99,222.83,14.70498703]
[1737974120079,212.0,223.13,222.89,14.70498703]
[1737974120080,14.70498703,223.05,222.89,14.70498703]
[1737974120385,14.70498703,223.08,222.92,14.70498703]
[1737974120585,19.18968703,223.08,222.97,4.4867]
[1737974120888,0.03072193,223.02,222.98,0.02883459]
[1737974121184,0.03072193,223.02,222.93,1.4682]
[1737974121185,14.70498703,223.05,222.93,1.4682]
[1737974121380,4.51440646,223.02,222.98,0.02883459]
[1737974121578,14.70498703,222.99,222.98,0.02883459]
[1737974121983,4.4869,222.97,222.89,4.4884]
[1737974122688,4.4865,222.99,222.91,4.488]
[1737974122878,23.60266431,223.08,222.85,24.98606431]
[1737974123285,0.02853333,222.99,222.85,24.98606431]
[1737974123486,0.02853333,222.99,222.85,1.3834]
[1737974123684,4.4877,222.93,222.85,4.4891]
[1737974123884,0.02922972,222.94,222.84,1.4365]
[1737974124586,4.51672972,222.94,222.88,4.4886]
[1737974124784,0.02922972,222.94,222.84,1.4365]
[1737974125780,4.4877,222.93,222.86,4.489]
[1737974125983,0.02922972,222.94,222.86,4.489]
[1737974126286,0.02922972,222.94,222.84,1.4365]
[1737974126482,4.4887,222.88,222.81,4.49]
[1737974126687,23.60266431,222.99,222.79,1.4567]
[1737974126886,0.0293548,222.87,222.79,1.4567]
[1737974128085,0.0293548,222.87,222.82,4.4898]
[1737974128281,0.0293548,222.87,222.79,1.4567]
[1737974130287,4.4891,222.86,222.8,4.4901]
[1737974130487,0.0293548,222.87,222.79,1.4567]
[1737974132187,4.4895,222.84,222.79,5.9471]
[1737974132391,23.60266431,222.99,222.79,1.4567]
[1737974132586,23.60266431,222.99,222.8,23.60266431]
[1737974132788,4.4873,222.95,222.88,4.4885]
[1737974133184,4.4873,222.95,222.8,23.60266431]
[1737974133385,23.60266431,222.99,222.8,23.60266431]
[1737974133591,0.03392035,222.9,222.85,0.0293548]
[1737974133892,0.03392035,222.9,222.8,23.60266431]
[1737974134085,0.03392035,222.9,222.85,0.0293548]
[1737974135293,4.4891,222.86,222.85,0.0293548]
[1737974135591,0.03392035,222.9,222.85,0.0293548]
[1737974136788,4.4888,222.88,222.85,0.0293548]
[1737974137087,0.03392035,222.9,222.85,0.0293548]
[1737974137493,4.4889,222.87,222.85,0.0293548]
[1737974137786,0.03392035,222.9,222.79,1.4567]
[1737974137995,23.60266431,222.95,222.79,1.4567]
[1737974138991,0.03217424,222.89,222.79,1.4567]
[1737974139183,0.03217424,222.89,222.82,4.4899]
[1737974139391,0.03217424,222.89,222.79,1.4567]
[1737974139787,0.03217424,222.89,222.82,4.4899]
[1737974139994,0.03217424,222.89,222.79,1.4567]
[1737974140490,0.03217424,222.89,222.88,4.4887]
[1737974141998,23.60266431,223.03,222.86,0.02838931]
[1737974142387,23.60266431,223.03,222.84,23.60266431]
[1737974142597,6.06566534,223.06,222.95,4.4872]
[1737974142795,6.06566534,223.06,222.88,23.60266431]
[1737974142994,0.03302243,223.03,222.98,4.51505631]
[1737974143492,4.4862,223.01,222.98,0.02855631]
[1737974143688,0.03302243,223.03,222.98,0.02855631]
[1737974144295,0.03302243,223.03,222.98,4.51515631]
[1737974144894,0.03302243,223.03,222.98,0.02855631]
[1737974145090,23.60266431,223.15,222.98,0.02855631]
[1737974145291,23.60266431,223.15,223.01,4.4859]
[1737974145498,23.60266431,223.15,222.96,25.06326431]
[1737974145499,4.4843,223.1,222.96,25.06326431]
[1737974145793,23.60266431,223.15,222.96,25.06326431]
[1737974146197,23.60266431,223.1,222.88,23.60266431]
[1737974146402,0.02860827,223.08,223.03,0.02965868]
[1737974146599,23.60266431,223.1,222.92,4.4877]
[1737974146900,23.60266431,223.06,222.89,1.3838]
[1737974147101,23.60266431,223.06,222.9,1.4523]
[1737974147797,0.0310044,223.0,222.9,1.4523]
[1737974148100,0.0310044,223.0,222.96,0.03026438]
[1737974148292,0.0310044,223.0,222.96,6.438e-05]
[1737974148596,4.4868,222.97,222.96,6.438e-05]
[1737974148800,23.60266431,222.98,222.81,1.4523]
[1737974150094,0.03388063,222.92,222.81,1.4523]
[1737974150297,0.03388063,222.92,222.82,1.3786]
[1737974150500,0.03388063,222.92,222.83,4.4895]
[1737974150799,0.03388063,222.92,222.82,1.3786]
[1737974151800,0.03388063,222.92,222.87,4.4888]
[1737974152302,4.52188063,222.92,222.85,4.4891]
[1737974152502,23.60266431,222.98,222.82,1.3786]
[1737974152900,4.4876,222.94,222.85,4.4892]
[1737974153107,23.60266431,222.98,222.85,4.4892]
[1737974153307,23.60266431,222.98,222.82,1.3786]
[1737974153501,23.60266431,222.98,222.82,5.8684]
[1737974153705,0.02946476,222.92,222.88,0.03333789]
[1737974154207,4.4884,222.89,222.88,0.03333789]
[1737974155008,4.4884,222.89,222.88,3.789e-05]
[1737974156304,0.02946476,222.92,222.88,3.789e-05]
[1737974156907,4.4881,222.91,222.88,3.789e-05]
[1737974157104,0.02946476,222.92,222.88,3.789e-05]
[1737974157708,4.4884,222.89,222.88,3.789e-05]
[1737974159113,4.4896,222.84,222.81,1.4523]
[1737974159306,23.60266431,222.94,222.81,1.4523]
[1737974159509,23.60266431,222.89,222.81,1.4523]
[1737974159706,4.4897,222.83,222.81,1.4523]
[1737974159907,23.60266431,222.85,222.64,23.60266431]
[1737974160106,23.60266431,222.94,222.48,23.60266431]
[1737974160107,23.60266431,222.81,222.65,1.4339]
[1737974160709,0.03129917,222.79,222.65,1.4339]
[1737974161510,0.03129917,222.79,222.74,4.4914]
[1737974161713,0.03129917,222.79,222.74,1.3705]
[1737974162112,23.60266431,222.85,222.74,2.7572]
[1737974162311,23.60266431,222.94,222.74,2.7572]
[1737974162612,4.4878,222.93,222.88,4.4886]
[1737974162819,23.60266431,222.94,222.75,0.77523916]
[1737974163022,23.60266431,222.94,222.76,24.37783764]
[1737974163213,23.60266431,222.94,222.77,0.77517333]
[1737974163519,4.766e-05,222.87,222.82,0.03283286]
[1737974164021,6.06566534,222.99,222.96,4.4869]
[1737974164516,6.06566534,222.99,222.87,3.4]
[1737974164723,29.66832965,222.99,222.87,3.4]
[1737974164917,23.60266431,222.99,222.95,0.02992329]
[1737974165117,4.4869,222.97,222.95,0.02992329]
[1737974165521,23.60266431,222.96,222.68,23.60266431]
[1737974165719,23.60266431,222.84,222.69,1.3482]
[1737974166424,23.60266431,222.88,222.69,1.3482]
[1737974166618,0.03340203,222.79,222.74,0.0316945]
[1737974166821,23.60266431,222.96,222.75,27.08266431]
[1737974167319,23.60266431,222.96,222.76,1.3435]
[1737974167519,4.4876,222.94,222.76,1.3435]
[1737974167721,23.60266431,223.0,222.79,23.60266431]
[1737974167914,0.03286772,222.87,222.84,4.4894]
[1737974168113,23.60266431,223.0,222.83,0.03033852]
[1737974168318,23.60266431,223.0,222.8,1.3376]
[1737974168515,23.60266431,222.96,222.8,1.3376]
[1737974168917,23.60266431,223.0,222.8,1.3376]
[1737974169122,295.96,223.15,222.83,23.60266431]
[1737974169318,0.03425736,222.92,222.88,0.03200409]
[1737974169623,0.03425736,222.92,222.87,23.60266431]
[1737974169624,0.2204,223.13,222.87,23.60266431]
[1737974170616,83.96,223.15,222.87,23.60266431]
[1737974170617,0.03430681,222.99,222.94,0.02899605]
[1737974170815,23.60266431,223.1,222.89,1.3679]
[1737974171224,4.4849,223.07,222.97,4.4868]
[1737974172027,0.03163446,223.04,223.0,0.03354289]
[1737974172429,4.51713446,223.04,223.0,0.03354289]
[1737974173620,0.03163446,223.04,223.0,0.03354289]
[1737974173821,23.60266431,223.02,223.0,0.03354289]
[1737974174025,23.60266431,223.02,222.89,1.3679]
[1737974174823,23.60266431,223.06,222.89,1.3679]
[1737974175025,23.60266431,223.1,222.89,1.3679]
[1737974175226,0.0308599,223.0,222.95,0.03201217]
[1737974175525,23.60266431,223.1,222.91,3.48]
[1737974175720,0.02841063,223.0,222.95,0.02928391]
[1737974175921,4.485,223.07,222.92,1.3393]
[1737974176122,23.60266431,223.1,222.92,1.3393]
[1737974176321,23.60266431,223.1,222.93,1.3429]
[1737974176519,4.4853,223.05,222.99,4.4863]
[1737974176722,4.4853,223.05,222.93,1.3429]
[1737974177128,0.03150869,223.01,222.97,4.52021435]
[1737974177429,23.60266431,223.1,222.97,0.03341435]
[1737974177720,0.02881049,223.01,222.97,0.03341435]
[1737974177924,0.03084903,223.01,222.97,0.03341435]
[1737974179530,0.03084903,223.01,222.97,4.52021435]
[1737974179829,0.03084903,223.01,222.97,0.03341435]
[1737974180731,4.51704903,223.01,222.97,0.03341435]
[1737974181029,0.03084903,223.01,222.97,0.03341435]
[1737974181230,0.03084903,223.01,222.97,4.52021435]
[1737974181421,0.03084903,223.01,222.97,0.03341435]
[1737974182828,0.03084903,223.01,222.97,4.52021435]
[1737974183028,0.03084903,223.01,222.97,0.03341435]
[1737974185126,4.4866,222.98,222.97,0.03341435]
[1737974185325,0.03084903,223.01,222.9,1.3817]
[1737974185527,4.4866,222.99,222.95,4.4872]
[1737974185834,23.60266431,223.1,222.9,1.3817]
[1737974186436,0.03359065,223.02,222.98,0.03385557]
[1737974187134,0.2867,223.14,222.98,0.03385557]
[1737974187336,0.2867,223.14,222.96,23.60266431]
[1737974187933,4.4847,223.08,222.96,23.60266431]
[1737974188334,0.03180228,223.04,223.01,4.486]
[1737974188534,0.2867,223.14,222.94,3.46]
[1737974188739,0.03443145,223.05,223.0,0.03327444]
[1737974188938,0.03443145,223.05,222.94,3.46]
[1737974189242,4.4858,223.03,223.0,0.03148175]
[1737974190439,0.03443145,223.05,223.0,0.03148175]
[1737974190937,4.486,223.01,223.0,0.03148175]
[1737974191339,4.486,223.01,223.0,8.175e-05]
[1737974192637,23.60266431,223.03,222.67,8.9855]
[1737974192844,23.60266431,222.94,222.82,4.4898]
[1737974193036,23.60266431,222.94,222.78,4.2765]
[1737974193342,0.3449,223.0,222.88,4.4886]
[1737974193733,0.03143081,222.96,222.92,0.02876966]
[1737974194341,0.03143081,222.96,222.92,4.51646966]
[1737974194542,0.03143081,222.96,222.92,0.02876966]
[1737974195438,0.03143081,222.96,222.94,4.4874]
[1737974195637,23.94816431,223.08,222.92,0.02876966]
[1737974195638,23.94816431,223.08,222.93,4.1374]
[1737974196036,4.4861,223.01,222.96,4.4869]
[1737974196235,23.94816431,223.08,222.93,4.1374]
[1737974196638,23.76156431,223.08,222.98,0.03423368]
[1737974196843,0.03106528,223.03,222.98,0.03423368]
[1737974197243,4.484,223.12,222.99,23.60266431]
[1737974197443,0.345,223.17,222.99,23.60266431]
[1737974197643,24.26266136,223.19,222.99,23.60266431]
[1737974197845,23.60266431,223.2,222.99,23.60266431]
[1737974198547,0.03117538,223.12,223.07,4.51329564]
[1737974199441,0.03117538,223.12,223.07,0.02849564]
[1737974200548,0.03117538,223.12,223.1,4.4842]
[1737974200745,23.60266431,223.24,223.07,0.02849564]
[1737974201049,23.60266431,223.28,223.07,23.60266431]
[1737974201453,23.60266431,223.28,223.14,4.4833]
[1737974201646,23.60266431,223.28,223.07,23.60266431]
[1737974201847,0.03333294,223.2,223.18,4.4825]
[1737974202448,4.4806,223.29,223.16,2.8986]
[1737974202648,24.26266136,223.33,223.16,2.8986]
[1737974202948,23.60266431,223.36,223.16,2.8986]
[1737974203243,6.06566534,223.39,223.16,2.8986]
[1737974203443,4.4799,223.32,223.22,4.4816]
[1737974203644,0.03276533,223.3,223.25,0.02940609]
[1737974204251,0.03276533,223.3,223.25,0.03401072]
[1737974204549,4.51296533,223.3,223.25,0.03401072]
[1737974204847,0.03276533,223.3,223.25,0.03401072]
[1737974205152,4.4808,223.27,223.25,1.072e-05]
[1737974205451,23.60266431,223.28,223.03,23.60266431]
[1737974205654,4.4839,223.12,223.04,0.77422153]
[1737974205842,23.60266431,223.21,223.01,3.42]
[1737974206353,23.60266431,223.25,223.04,23.60266431]
[1737974206652,0.3324,223.26,223.09,0.03236643]
[1737974206842,23.60266431,223.33,223.12,23.60266431]
[1737974207649,23.60266431,223.29,223.09,2.7277]
[1737974207951,0.03133948,223.25,223.2,0.0325974]
[1737974208149,4.482,223.21,223.09,7.212]
[1737974208445,23.60266431,223.21,223.02,1.3791]
[1737974208650,23.60266431,223.21,223.03,1.3407]
[1737974209349,23.60266431,223.21,223.05,4.4852]
[1737974209548,0.03382041,223.14,223.1,0.03400151]
[1737974209951,4.4839,223.12,223.1,0.03400151]
[1737974210554,4.485,223.06,223.02,1.3791]
[1737974210752,0.03382041,223.14,223.02,1.3791]
[1737974210952,23.60266431,223.17,222.99,4.4863]
[1737974211153,23.60266431,223.17,222.97,4.1087]
[1737974211749,0.03293299,223.09,223.05,0.02932898]
[1737974212154,0.03293299,223.09,223.05,4.51432898]
[1737974212757,0.03293299,223.09,223.05,0.02932898]
[1737974213054,0.03293299,223.09,223.07,4.4848]
[1737974213457,23.60266431,223.21,223.07,4.4848]
[1737974213758,23.60266431,223.21,223.0,23.60266431]
[1737974214256,23.60266431,223.21,222.97,4.1087]
[1737974214449,23.60266431,223.17,222.97,4.1087]
[1737974214652,0.03079243,223.11,223.07,0.03198092]
[1737974215146,4.51499243,223.11,223.07,0.03198092]
[1737974215353,0.03079243,223.11,223.07,0.03198092]
[1737974217160,0.03079243,223.11,223.1,4.4842]
[1737974217854,0.2777,223.24,223.08,1.4259]
[1737974218460,23.60266431,223.16,222.86,8.9778]
[1737974218660,23.60266431,223.12,222.97,1.4259]
[1737974219051,0.03109653,223.07,223.02,0.02850303]
[1737974219253,4.4856,223.03,223.02,0.02850303]
[1737974219760,0.03109653,223.07,223.02,0.02850303]
[1737974220156,0.03109653,223.07,222.73,10.01375141]
[1737974220157,23.60266431,223.05,222.73,10.01375141]
[1737974220353,23.60266431,222.98,222.78,1.4569]
[1737974221260,0.02825598,222.9,222.86,0.03417336]
[1737974221756,6.663e-05,222.9,222.86,0.03236027]
[1737974222157,6.663e-05,222.9,222.89,4.4885]
[1737974223661,6.663e-05,222.9,222.86,0.03236027]
[1737974224056,6.663e-05,222.9,222.88,4.4886]
[1737974224565,6.663e-05,222.9,222.89,1.4407]
[1737974224753,23.69446431,223.12,222.89,1.4407]
[1737974224955,0.0918,223.12,222.91,23.60266431]
[1737974225261,0.3114,223.14,222.92,0.77478151]
[1737974225461,0.3114,223.14,222.91,23.60266431]
[1737974225657,0.3114,223.14,223.01,4.4859]
[1737974225962,4.4845,223.09,223.05,0.02923154]
[1737974226158,0.033057,223.1,223.05,0.02923154]
[1737974226355,23.60266431,223.12,222.97,4.4867]
[1737974226552,0.03148867,223.1,223.05,0.03138955]
[1737974226756,4.4847,223.08,223.05,0.03138955]
[1737974227160,0.03148867,223.1,223.05,0.03138955]
[1737974229356,4.485,223.07,223.05,0.03138955]
[1737974229556,23.60266431,223.08,222.96,1.4713]
[1737974229760,23.60266431,223.08,222.9,1.3414]
[1737974229960,23.60266431,223.04,222.9,1.3414]
[1737974230660,23.60266431,223.04,222.95,0.03374047]
[1737974230661,0.0308515,222.99,222.95,0.03374047]
[1737974232266,23.60266431,223.12,222.95,0.03374047]
[1737974232461,0.3114,223.14,222.95,0.03374047]
[1737974232765,0.3114,223.14,222.94,4.15461262]
[1737974232956,0.3114,223.14,222.95,0.77457859]
[1737974233661,0.03070113,223.07,223.04,4.4854]
[1737974234160,0.03070113,223.07,223.03,0.03137916]
[1737974234365,0.03070113,223.07,222.94,3.38]
[1737974234565,0.03070113,223.07,223.03,0.03420349]
[1737974234766,4.4856,223.03,222.96,4.4869]
[1737974234970,4.4856,223.03,222.89,4.8207]
[1737974235166,0.03326995,223.02,222.97,0.02954936]
[1737974235366,38.33392032,223.13,222.92,0.77474629]
[1737974235669,0.032785,223.02,222.97,0.03324154]
[1737974235865,4.4842,223.1,223.04,4.4853]
[1737974236068,0.03344678,223.02,222.97,0.02963017]
[1737974236368,38.33392032,223.13,222.92,0.77463975]
[1737974236568,0.03370323,223.02,222.97,0.03382236]
[1737974237169,0.03370323,223.02,223.0,4.4861]
[1737974237564,0.03370323,223.02,222.98,1.4101]
[1737974238670,38.33392032,223.17,222.98,1.4101]
[1737974239766,0.02851371,223.1,222.98,1.4101]
[1737974240069,4.485,223.06,223.05,0.03271193]
[1737974241964,4.4848,223.08,223.05,0.03271193]
[1737974242162,0.02851371,223.1,223.05,0.03271193]
[1737974242363,0.02851371,223.1,222.98,1.4101]
[1737974242873,0.02851371,223.1,222.99,38.33392032]
[1737974243067,38.33392032,223.25,223.03,38.33392032]
[1737974243272,0.1582,223.27,223.07,38.33392032]
[1737974243463,0.1582,223.27,223.17,4.4828]
[1737974243668,4.4818,223.22,223.07,38.33392032]
[1737974243867,0.1582,223.27,223.08,1.3825]
[1737974244070,38.33392032,223.22,223.08,1.3825]
[1737974244272,0.03062635,223.2,223.15,0.03056684]
[1737974244668,38.33392032,223.22,223.15,0.03056684]
[1737974244874,38.33392032,223.18,223.0,1.3825]
[1737974245075,38.33392032,223.18,223.03,4.4855]
[1737974245276,4.484,223.12,223.03,4.4855]
[1737974245477,38.33392032,223.18,223.0,4.231]
[1737974245777,38.33392032,223.22,223.0,4.231]
[1737974246077,0.02978671,223.13,223.09,0.0328636]
[1737974246476,38.33392032,223.22,223.09,0.0328636]
[1737974246773,38.33392032,223.26,223.09,0.0328636]
[1737974246973,0.02921418,223.18,223.03,38.33392032]
[1737974247171,4.4833,223.15,223.12,0.03252062]
[1737974247373,0.02967618,223.13,223.12,0.03252062]
[1737974247677,38.33392032,223.22,223.12,0.03252062]
[1737974247880,0.03403777,223.15,223.13,4.4836]
[1737974248077,4.4822,223.21,223.12,0.03252062]
[1737974248273,0.02882183,223.16,223.12,0.03252062]
[1737974248483,0.1582,223.27,223.14,0.03356252]
[1737974248676,0.02906929,223.16,223.14,0.03356252]
[1737974248871,0.1582,223.27,223.18,0.03074041]
[1737974249074,0.1582,223.27,223.07,38.33392032]
[1737974249278,4.482,223.21,223.2,0.03129017]
[1737974249479,0.1582,223.27,223.07,38.33392032]
[1737974249679,0.1582,223.27,223.18,0.03156023]
[1737974249680,0.03036937,223.23,223.18,0.03156023]
[1737974249880,38.33392032,223.22,223.02,38.33392032]
[1737974250082,38.33392032,223.22,223.0,7.551]
[1737974250281,4.4844,223.1,223.04,4.4854]
[1737974250485,38.33392032,223.18,223.0,4.231]
[1737974250777,4.4846,223.09,223.02,4.4858]
[1737974250982,4.4846,223.09,223.0,2.8485]
[1737974251186,0.02891162,223.08,223.03,0.02870345]
[1737974251380,0.02891162,223.08,223.05,4.4852]
[1737974251686,0.02891162,223.08,223.03,0.03157598]
[1737974252080,0.02891162,223.08,223.06,4.485]
[1737974252478,0.02891162,223.08,223.03,0.03157598]
[1737974254982,4.4854,223.04,223.03,0.03157598]
[1737974255185,0.02891162,223.08,223.03,0.03157598]
[1737974256283,23.58757958,223.06,222.91,2.8376]
[1737974256683,23.58757958,223.02,222.91,2.8376]
[1737974257485,0.03398277,222.99,222.94,0.03210107]
[1737974257684,4.4867,222.98,222.94,0.03210107]
[1737974257884,0.03398277,222.99,222.94,0.03210107]
[1737974259193,0.03398277,222.99,222.96,4.487]
[1737974259389,0.03398277,222.99,222.94,0.03210107]
[1737974259897,0.03398277,222.99,222.98,4.4866]
[1737974260889,23.58757958,223.1,222.94,0.03210107]
[1737974261082,23.58757958,223.14,222.94,0.03210107]
[1737974261289,23.58757958,223.14,222.93,23.58757958]
[1737974261590,4.4842,223.1,223.05,4.4852]